[Event "Live Chess"]
[Site "Chess.com"]
[Date "2024.06.02"]
[Round "-"]
[White "LL220284LL"]
[Black "juniortay"]
[Result "1-0"]
[WhiteElo "2515"]
[BlackElo "2362"]
[TimeControl "300"]
[EndTime "3:57:15 PDT"]
[Termination "LL220284LL won by resignation"]

1. g3 {[%clk 0:04:57.5]} 1... d5 {[%clk 0:04:58.8]} 2. Bg2 {[%clk 0:04:56.9]}
2... c5 {[%clk 0:04:57.8]} 3. Nf3 {[%clk 0:04:56.2]} 3... Nc6 {[%clk 0:04:56]}
4. b3 {[%clk 0:04:54.8]} 4... Nf6 {[%clk 0:04:54]} 5. Bb2 {[%clk 0:04:54.2]}
5... e6 {[%clk 0:04:53.3]} 6. O-O {[%clk 0:04:53]} 6... a6 {[%clk 0:04:49]} 7.
e3 {[%clk 0:04:52.4]} 7... Be7 {[%clk 0:04:47.5]} 8. d4 {[%clk 0:04:50.9]} 8...
O-O {[%clk 0:04:46.3]} 9. Nbd2 {[%clk 0:04:48]} 9... Re8 {[%clk 0:04:45.2]} 10.
Re1 {[%clk 0:04:46.3]} 10... b5 {[%clk 0:04:43.7]} 11. e4 {[%clk 0:04:41.4]}
11... dxe4 {[%clk 0:04:41.9]} 12. Nxe4 {[%clk 0:04:41.3]} 12... Nxe4 {[%clk
0:04:41]} 13. Rxe4 {[%clk 0:04:39.5]} 13... Bb7 {[%clk 0:04:38.6]} 14. dxc5
{[%clk 0:04:34.2]} 14... Bxc5 {[%clk 0:04:37.4]} 15. Qe2 {[%clk 0:04:22.7]}
15... Qb6 {[%clk 0:03:54.8]} 16. Rf1 {[%clk 0:03:58.2]} 16... Rad8 {[%clk
0:03:52.3]} 17. Ng5 {[%clk 0:03:45.4]} 17... h6 {[%clk 0:03:46.3]} 18. Nxf7
{[%clk 0:03:39]} 18... Kxf7 {[%clk 0:03:44]} 19. Qh5+ {[%clk 0:03:35.3]} 19...
Kg8 {[%clk 0:03:42.6]} 20. Bxg7 {[%clk 0:03:34]} 20... Rd5 {[%clk 0:03:07]} 21.
Qxe8+ {[%clk 0:03:25.9]} 21... Kxg7 {[%clk 0:03:06.1]} 22. Rxe6 {[%clk
0:03:20.7]} 22... Rg5 {[%clk 0:02:50.5]} 23. Bxc6 {[%clk 0:03:14]} 23... Bxc6
{[%clk 0:02:36]} 24. Qxc6 {[%clk 0:03:06.3]} 1-0

[Event "Live Chess"]
[Site "Chess.com"]
[Date "2024.06.02"]
[Round "-"]
[White "mrsmarple1968"]
[Black "r0ad_t0-gm"]
[Result "0-1"]
[WhiteElo "1751"]
[BlackElo "2272"]
[TimeControl "300"]
[EndTime "3:57:21 PDT"]
[Termination "r0ad_t0-gm won by resignation"]

1. e4 {[%clk 0:04:56.1]} 1... Nf6 {[%clk 0:04:59.9]} 2. Nc3 {[%clk 0:04:54]}
2... d5 {[%clk 0:04:58.7]} 3. exd5 {[%clk 0:04:52.1]} 3... Nxd5 {[%clk
0:04:58.6]} 4. Nxd5 {[%clk 0:04:50.4]} 4... Qxd5 {[%clk 0:04:57.8]} 5. d3 {[%clk
0:04:49.3]} 5... Nc6 {[%clk 0:04:54.8]} 6. Nf3 {[%clk 0:04:47.7]} 6... Bg4
{[%clk 0:04:53.6]} 7. Be2 {[%clk 0:04:46.3]} 7... O-O-O {[%clk 0:04:52.6]} 8.
O-O {[%clk 0:04:44.4]} 8... e5 {[%clk 0:04:51.9]} 9. Be3 {[%clk 0:04:39.6]} 9...
e4 {[%clk 0:04:46]} 10. dxe4 {[%clk 0:04:34.3]} 10... Qxe4 {[%clk 0:04:45.9]}
11. Qc1 {[%clk 0:04:24.5]} 11... Kb8 {[%clk 0:04:20]} 12. c3 {[%clk 0:04:21]}
12... Bd6 {[%clk 0:04:15.9]} 13. b4 {[%clk 0:04:09.2]} 13... Bxf3 {[%clk
0:03:52.8]} 14. Bxf3 {[%clk 0:04:06]} 14... Qe5 {[%clk 0:03:52.2]} 15. g3 {[%clk
0:04:00.7]} 15... Ne7 {[%clk 0:03:43.1]} 16. Bf4 {[%clk 0:03:47.8]} 16... Qf6
{[%clk 0:03:40.3]} 17. Bxd6 {[%clk 0:03:43.5]} 17... Rxd6 {[%clk 0:03:36.8]} 18.
Bg2 {[%clk 0:03:40.2]} 18... h5 {[%clk 0:03:35.3]} 19. h4 {[%clk 0:03:29.6]}
19... Nf5 {[%clk 0:03:05.8]} 20. c4 {[%clk 0:02:59.5]} 20... Nxh4 {[%clk
0:02:36.1]} 21. gxh4 {[%clk 0:02:48.8]} 21... Qxh4 {[%clk 0:02:36]} 22. Qc3
{[%clk 0:02:29.9]} 22... Rg6 {[%clk 0:02:31.7]} 23. Qf3 {[%clk 0:02:22.1]} 23...
c6 {[%clk 0:01:28.5]} 24. Rfe1 {[%clk 0:02:06.2]} 24... Qg5 {[%clk 0:01:01.6]}
25. Kh2 {[%clk 0:01:42.3]} 25... h4 {[%clk 0:00:58.6]} 26. Bh3 {[%clk
0:01:20.1]} 26... Rf6 {[%clk 0:00:54.2]} 27. Qg2 {[%clk 0:01:15.2]} 27... Qf4+
{[%clk 0:00:48.8]} 28. Kg1 {[%clk 0:01:11]} 28... Rg6 {[%clk 0:00:46.1]} 0-1

[Event "Live Chess"]
[Site "Chess.com"]
[Date "2024.06.02"]
[Round "-"]
[White "slava_ukr"]
[Black "Crowded_House"]
[Result "1/2-1/2"]
[WhiteElo "2407"]
[BlackElo "1659"]
[TimeControl "300"]
[EndTime "3:57:23 PDT"]
[Termination "Game drawn by repetition"]

1. e4 {[%clk 0:04:57.9]} 1... e6 {[%clk 0:04:55.6]} 2. d4 {[%clk 0:04:56.8]}
2... d5 {[%clk 0:04:55.1]} 3. exd5 {[%clk 0:04:56.3]} 3... Qxd5 {[%clk
0:04:52.4]} 4. Nc3 {[%clk 0:04:54.5]} 4... Qd8 {[%clk 0:04:50.7]} 5. Nf3 {[%clk
0:04:52.8]} 5... Bb4 {[%clk 0:04:49.4]} 6. Bd3 {[%clk 0:04:47.1]} 6... Nf6
{[%clk 0:04:48.6]} 7. O-O {[%clk 0:04:45.6]} 7... O-O {[%clk 0:04:47.3]} 8. Bg5
{[%clk 0:04:44.4]} 8... h6 {[%clk 0:04:45.4]} 9. Bh4 {[%clk 0:04:43.3]} 9... Be7
{[%clk 0:04:42.6]} 10. Ne2 {[%clk 0:04:35.5]} 10... b6 {[%clk 0:04:41.5]} 11. c4
{[%clk 0:04:33.3]} 11... Bb7 {[%clk 0:04:40.5]} 12. Ne5 {[%clk 0:04:31.4]} 12...
Nbd7 {[%clk 0:04:36.1]} 13. f4 {[%clk 0:04:26.8]} 13... Nxe5 {[%clk 0:04:27.7]}
14. fxe5 {[%clk 0:04:25.4]} 14... Ne4 {[%clk 0:04:26.6]} 15. Bxe7 {[%clk
0:04:20.5]} 15... Qxe7 {[%clk 0:04:25.8]} 16. Qc2 {[%clk 0:04:17.6]} 16... Ng5
{[%clk 0:04:17.2]} 17. h4 {[%clk 0:04:13.6]} 17... Nh3+ {[%clk 0:04:09.5]} 18.
gxh3 {[%clk 0:04:12.1]} 18... Qxh4 {[%clk 0:04:08.6]} 19. Kh2 {[%clk 0:04:04]}
19... f6 {[%clk 0:03:49.2]} 20. exf6 {[%clk 0:03:46.9]} 20... Rxf6 {[%clk
0:03:47.5]} 21. Rxf6 {[%clk 0:03:45.3]} 21... Qxf6 {[%clk 0:03:46.2]} 22. Ng3
{[%clk 0:03:34.3]} 22... Qxd4 {[%clk 0:03:28.1]} 23. Bh7+ {[%clk 0:03:25.2]}
23... Kh8 {[%clk 0:03:23.5]} 24. Be4 {[%clk 0:03:24.2]} 24... Bxe4 {[%clk
0:03:15]} 25. Qxe4 {[%clk 0:03:22.9]} 25... Qxb2+ {[%clk 0:03:05.8]} 26. Ne2
{[%clk 0:03:19.8]} 26... Rf8 {[%clk 0:02:54.9]} 27. Rg1 {[%clk 0:03:15.9]} 27...
Rf2+ {[%clk 0:02:40.1]} 28. Rg2 {[%clk 0:03:14.6]} 28... Rxg2+ {[%clk
0:02:38.7]} 29. Kxg2 {[%clk 0:03:12.6]} 29... Qxa2 {[%clk 0:02:36]} 30. Kg3
{[%clk 0:03:07.4]} 30... Qb3+ {[%clk 0:02:32.4]} 31. Kg4 {[%clk 0:02:58.9]}
31... a5 {[%clk 0:02:20.7]} 32. Nf4 {[%clk 0:02:47]} 32... Qd1+ {[%clk
0:02:12.3]} 33. Kg3 {[%clk 0:02:40.4]} 33... Qg1+ {[%clk 0:02:07.2]} 34. Ng2
{[%clk 0:02:39.2]} 34... Qc5 {[%clk 0:02:00.9]} 35. Qxe6 {[%clk 0:02:31.1]}
35... Qg5+ {[%clk 0:01:53.9]} 36. Kh2 {[%clk 0:02:27.9]} 36... Qf6 {[%clk
0:01:51.1]} 37. Qc8+ {[%clk 0:02:03.6]} 37... Kh7 {[%clk 0:01:46]} 38. Qxc7
{[%clk 0:02:02.4]} 38... a4 {[%clk 0:01:33.8]} 39. Qa7 {[%clk 0:02:01.1]} 39...
Qd6+ {[%clk 0:01:27.9]} 40. Kh1 {[%clk 0:01:56.9]} 40... Qd1+ {[%clk 0:01:25.7]}
41. Kh2 {[%clk 0:01:55.9]} 41... Qd6+ {[%clk 0:01:25.3]} 42. Kg1 {[%clk
0:01:55.2]} 42... Qd1+ {[%clk 0:01:25]} 43. Kh2 {[%clk 0:01:32.7]} 43... Qd6+
{[%clk 0:01:23.7]} 1/2-1/2

[Event "Live Chess"]
[Site "Chess.com"]
[Date "2024.06.02"]
[Round "-"]
[White "NottheBishopSacrifice"]
[Black "MaksymYurii"]
[Result "1-0"]
[WhiteElo "2323"]
[BlackElo "1000"]
[TimeControl "300"]
[EndTime "3:57:33 PDT"]
[Termination "NottheBishopSacrifice won by resignation"]

1. d4 {[%clk 0:04:58.2]} 1... d5 {[%clk 0:04:58.8]} 2. c4 {[%clk 0:04:57.8]}
2... dxc4 {[%clk 0:04:57.4]} 3. e4 {[%clk 0:04:55.3]} 3... Nd7 {[%clk
0:04:50.5]} 4. Bxc4 {[%clk 0:04:53.3]} 4... e6 {[%clk 0:04:47.4]} 5. Nf3 {[%clk
0:04:51.9]} 5... Ngf6 {[%clk 0:04:45.7]} 6. O-O {[%clk 0:04:51.3]} 6... Nxe4
{[%clk 0:04:42.3]} 7. Re1 {[%clk 0:04:50.3]} 7... Nef6 {[%clk 0:04:40.9]} 8. Nc3
{[%clk 0:04:48.3]} 8... Bd6 {[%clk 0:04:38]} 9. Ne5 {[%clk 0:04:45.6]} 9... Nxe5
{[%clk 0:04:31.9]} 10. dxe5 {[%clk 0:04:43.7]} 10... Be7 {[%clk 0:04:16.1]} 11.
Qxd8+ {[%clk 0:04:42]} 11... Bxd8 {[%clk 0:04:14.4]} 12. exf6 {[%clk 0:04:41.7]}
12... Bxf6 {[%clk 0:04:13.3]} 13. Bf4 {[%clk 0:04:40.6]} 13... c6 {[%clk
0:04:10.1]} 14. Rad1 {[%clk 0:04:39.8]} 14... O-O {[%clk 0:04:08.2]} 15. Ne4
{[%clk 0:04:38.9]} 15... Bxb2 {[%clk 0:04:03.8]} 16. Bd6 {[%clk 0:04:38.3]}
16... Re8 {[%clk 0:03:59.6]} 17. Ng3 {[%clk 0:04:33]} 17... b5 {[%clk
0:03:55.9]} 18. Be2 {[%clk 0:04:27.4]} 18... Bb7 {[%clk 0:03:40.6]} 19. Bf3
{[%clk 0:04:24.4]} 19... Bc3 {[%clk 0:03:30.9]} 20. Rf1 {[%clk 0:04:18.8]} 20...
a5 {[%clk 0:03:23.3]} 21. Ne4 {[%clk 0:04:16.2]} 21... Bb4 {[%clk 0:03:15.1]}
22. Nc5 {[%clk 0:04:14]} 22... Bxc5 {[%clk 0:03:10.4]} 23. Bxc5 {[%clk
0:04:13.9]} 23... a4 {[%clk 0:03:04.3]} 24. Rd7 {[%clk 0:04:10.6]} 24... Ba6
{[%clk 0:02:58.4]} 25. Rc7 {[%clk 0:04:07.9]} 25... b4 {[%clk 0:02:56.8]} 26.
Bxc6 {[%clk 0:04:05.8]} 26... Bxf1 {[%clk 0:02:53.6]} 27. Bxe8 {[%clk
0:04:03.2]} 27... Rxe8 {[%clk 0:02:50.3]} 28. Kxf1 {[%clk 0:04:02.4]} 28... e5
{[%clk 0:02:48.9]} 29. Bxb4 {[%clk 0:03:59]} 29... e4 {[%clk 0:02:46.6]} 30. a3
{[%clk 0:03:57]} 30... e3 {[%clk 0:02:45.3]} 31. fxe3 {[%clk 0:03:56.1]} 31...
Rxe3 {[%clk 0:02:43.2]} 32. Rc8+ {[%clk 0:03:55.3]} 1-0

[Event "Live Chess"]
[Site "Chess.com"]
[Date "2024.06.02"]
[Round "-"]
[White "Isambard_Thomas"]
[Black "vlad10898"]
[Result "0-1"]
[WhiteElo "2203"]
[BlackElo "2872"]
[TimeControl "300"]
[EndTime "3:58:03 PDT"]
[Termination "vlad10898 won by resignation"]

1. d4 {[%clk 0:04:59.8]} 1... g6 {[%clk 0:04:56.1]} 2. Nf3 {[%clk 0:04:57.8]}
2... Bg7 {[%clk 0:04:55]} 3. Bg5 {[%clk 0:04:53.3]} 3... c5 {[%clk 0:04:52.8]}
4. e3 {[%clk 0:04:52.3]} 4... Qb6 {[%clk 0:04:51.8]} 5. b3 {[%clk 0:04:51.2]}
5... Nc6 {[%clk 0:04:49.6]} 6. c3 {[%clk 0:04:50.4]} 6... d5 {[%clk 0:04:48.4]}
7. Bd3 {[%clk 0:04:49.5]} 7... Nf6 {[%clk 0:04:47.5]} 8. Nbd2 {[%clk 0:04:47.1]}
8... O-O {[%clk 0:04:46.4]} 9. h4 {[%clk 0:04:45.8]} 9... Bg4 {[%clk 0:04:35.6]}
10. h5 {[%clk 0:04:32.8]} 10... Nxh5 {[%clk 0:04:34]} 11. Rxh5 {[%clk
0:04:29.5]} 11... Bxh5 {[%clk 0:04:32]} 12. Qe2 {[%clk 0:04:13.3]} 12... e5
{[%clk 0:04:30.8]} 13. dxe5 {[%clk 0:04:11]} 13... Nxe5 {[%clk 0:04:30]} 14. Bc2
{[%clk 0:04:09.9]} 14... Nxf3+ {[%clk 0:04:28.1]} 15. Nxf3 {[%clk 0:04:07.9]}
15... Bxc3+ {[%clk 0:04:27.4]} 0-1

[Event "Live Chess"]
[Site "Chess.com"]
[Date "2024.06.02"]
[Round "-"]
[White "Tilbs_12"]
[Black "Ksenia_2013"]
[Result "1-0"]
[WhiteElo "1656"]
[BlackElo "983"]
[TimeControl "300"]
[EndTime "3:59:04 PDT"]
[Termination "Tilbs_12 won by checkmate"]

1. d4 {[%clk 0:04:57.1]} 1... d5 {[%clk 0:04:58.4]} 2. Nf3 {[%clk 0:04:54.2]}
2... Nc6 {[%clk 0:04:51.4]} 3. e3 {[%clk 0:04:51.7]} 3... Nf6 {[%clk 0:04:48.5]}
4. Bd3 {[%clk 0:04:50.3]} 4... g6 {[%clk 0:04:46.6]} 5. O-O {[%clk 0:04:40.3]}
5... Bg7 {[%clk 0:04:44.4]} 6. c3 {[%clk 0:04:38.5]} 6... O-O {[%clk 0:04:41.8]}
7. Nbd2 {[%clk 0:04:37]} 7... Bg4 {[%clk 0:04:39.6]} 8. Re1 {[%clk 0:04:33.8]}
8... Qd6 {[%clk 0:04:35.6]} 9. h3 {[%clk 0:04:32.4]} 9... Bxh3 {[%clk
0:04:30.1]} 10. gxh3 {[%clk 0:04:30.9]} 10... Nh5 {[%clk 0:04:08.9]} 11. a3
{[%clk 0:04:10.7]} 11... Ng3 {[%clk 0:04:06.3]} 12. Kg2 {[%clk 0:03:37.5]} 12...
Nh5 {[%clk 0:03:27.7]} 13. e4 {[%clk 0:03:31.3]} 13... Nf4+ {[%clk 0:03:25.4]}
14. Kf1 {[%clk 0:03:20.6]} 14... Nxd3 {[%clk 0:03:21]} 15. e5 {[%clk 0:03:14.4]}
15... Qe6 {[%clk 0:03:15.2]} 16. Kg2 {[%clk 0:03:08.9]} 16... Nf4+ {[%clk
0:03:02.1]} 17. Kg1 {[%clk 0:03:04.2]} 17... Nxh3+ {[%clk 0:02:58.4]} 18. Kf1
{[%clk 0:02:58.2]} 18... Nf4 {[%clk 0:02:44.3]} 19. Ng1 {[%clk 0:02:46.1]} 19...
Nd3 {[%clk 0:02:42.1]} 20. Re3 {[%clk 0:02:42.2]} 20... Nxc1 {[%clk 0:02:38.9]}
21. Rxc1 {[%clk 0:02:39.2]} 21... Bh6 {[%clk 0:02:30.5]} 22. Rh3 {[%clk
0:02:36.6]} 22... Bxd2 {[%clk 0:02:08.5]} 23. Qxd2 {[%clk 0:02:35.4]} 23... Qg4
{[%clk 0:01:49.9]} 24. f3 {[%clk 0:02:28.5]} 24... Qd7 {[%clk 0:01:41.7]} 25.
Qh6 {[%clk 0:02:26.7]} 25... Rfb8 {[%clk 0:01:34.9]} 26. Qxh7+ {[%clk
0:02:19.5]} 26... Kf8 {[%clk 0:01:33.8]} 27. Qh8# {[%clk 0:02:17.2]} 1-0

[Event "Live Chess"]
[Site "Chess.com"]
[Date "2024.06.02"]
[Round "-"]
[White "Crowded_House"]
[Black "80Times"]
[Result "1-0"]
[WhiteElo "1672"]
[BlackElo "1885"]
[TimeControl "300"]
[EndTime "3:59:19 PDT"]
[Termination "Crowded_House won - game abandoned"]

1. d4 {[%clk 0:04:56.9]} 1... g6 {[%clk 0:04:59.3]} 2. Bg5 {[%clk 0:04:56.3]}
2... Bg7 {[%clk 0:04:58.4]} 3. c3 {[%clk 0:04:56]} 3... d6 {[%clk 0:04:57.8]} 4.
Nf3 {[%clk 0:04:54.6]} 4... c6 {[%clk 0:04:56.6]} 5. Nbd2 {[%clk 0:04:53.3]}
5... Nd7 {[%clk 0:04:56.1]} 6. e3 {[%clk 0:04:52.7]} 6... h6 {[%clk 0:04:55.5]}
7. Bh4 {[%clk 0:04:50.5]} 7... b5 {[%clk 0:04:50.7]} 8. a3 {[%clk 0:04:47.1]}
8... Rb8 {[%clk 0:04:45.7]} 9. Bd3 {[%clk 0:04:45.4]} 9... c5 {[%clk 0:04:43]}
10. dxc5 {[%clk 0:04:40.6]} 10... Nxc5 {[%clk 0:04:40.8]} 11. Bc2 {[%clk
0:04:37.4]} 11... a5 {[%clk 0:04:37.4]} 12. O-O {[%clk 0:04:35.4]} 1-0

[Event "Live Chess"]
[Site "Chess.com"]
[Date "2024.06.02"]
[Round "-"]
[White "wadsy27"]
[Black "Silverback7829"]
[Result "1-0"]
[WhiteElo "2593"]
[BlackElo "880"]
[TimeControl "300"]
[EndTime "3:59:32 PDT"]
[Termination "wadsy27 won by checkmate"]

1. d4 {[%clk 0:04:54.4]} 1... d5 {[%clk 0:04:58.1]} 2. c4 {[%clk 0:04:50.7]}
2... Nc6 {[%clk 0:04:56.2]} 3. Nf3 {[%clk 0:04:49]} 3... Bg4 {[%clk 0:04:52.1]}
4. e3 {[%clk 0:04:48.2]} 4... Bxf3 {[%clk 0:04:48.4]} 5. Qxf3 {[%clk 0:04:46.8]}
5... Nf6 {[%clk 0:04:45.3]} 6. cxd5 {[%clk 0:04:45.4]} 6... e6 {[%clk
0:04:36.4]} 7. dxc6 {[%clk 0:04:44.1]} 7... bxc6 {[%clk 0:04:33]} 8. Qxc6+
{[%clk 0:04:42.5]} 8... Nd7 {[%clk 0:04:23.6]} 9. Bb5 {[%clk 0:04:41.4]} 9...
Rb8 {[%clk 0:04:20.1]} 10. Nc3 {[%clk 0:04:39.9]} 10... Bb4 {[%clk 0:04:14.1]}
11. O-O {[%clk 0:04:37.2]} 11... h5 {[%clk 0:04:04.7]} 12. Ne4 {[%clk
0:04:31.9]} 12... O-O {[%clk 0:03:57.7]} 13. Qxd7 {[%clk 0:04:30.3]} 13... Qxd7
{[%clk 0:03:51.1]} 14. Bxd7 {[%clk 0:04:28.9]} 14... Rbd8 {[%clk 0:03:47.2]} 15.
Bc6 {[%clk 0:04:28.2]} 15... Ba5 {[%clk 0:03:40.7]} 16. Bd2 {[%clk 0:04:27.5]}
16... Bxd2 {[%clk 0:03:36.8]} 17. Nxd2 {[%clk 0:04:27.4]} 17... Rd6 {[%clk
0:03:29.6]} 18. Rfc1 {[%clk 0:04:27]} 18... a5 {[%clk 0:03:14.3]} 19. Bf3 {[%clk
0:04:26.5]} 19... f6 {[%clk 0:03:05.1]} 20. Rxc7 {[%clk 0:04:24.8]} 20... Rb6
{[%clk 0:02:59.9]} 21. b3 {[%clk 0:04:23.9]} 21... e5 {[%clk 0:02:39]} 22. Rac1
{[%clk 0:04:22.7]} 22... Re6 {[%clk 0:02:30.2]} 23. Bd5 {[%clk 0:04:21.3]} 23...
Rf7 {[%clk 0:02:18.6]} 24. Bxe6 {[%clk 0:04:20]} 24... Kh7 {[%clk 0:02:14]} 25.
Rxf7 {[%clk 0:04:19.2]} 25... Kh6 {[%clk 0:02:06.4]} 26. Rcc7 {[%clk 0:04:19.1]}
26... h4 {[%clk 0:01:56.5]} 27. Rxg7 {[%clk 0:04:19]} 27... e4 {[%clk
0:01:46.9]} 28. Bf5 {[%clk 0:04:18.9]} 28... h3 {[%clk 0:01:36.8]} 29. Rg6+
{[%clk 0:04:18.8]} 29... Kh5 {[%clk 0:01:31.1]} 30. Rh7# {[%clk 0:04:18.7]} 1-0

[Event "Live Chess"]
[Site "Chess.com"]
[Date "2024.06.02"]
[Round "-"]
[White "defenderalist"]
[Black "Bodhanas"]
[Result "0-1"]
[WhiteElo "1527"]
[BlackElo "2339"]
[TimeControl "300"]
[EndTime "3:59:42 PDT"]
[Termination "Bodhanas won on time"]

1. e4 {[%clk 0:04:57.3]} 1... d6 {[%clk 0:04:58.8]} 2. d4 {[%clk 0:04:55.8]}
2... c6 {[%clk 0:04:57.9]} 3. Nc3 {[%clk 0:04:55.7]} 3... Qc7 {[%clk 0:04:57.2]}
4. f4 {[%clk 0:04:52.9]} 4... e5 {[%clk 0:04:55.5]} 5. fxe5 {[%clk 0:04:50.7]}
5... dxe5 {[%clk 0:04:52]} 6. dxe5 {[%clk 0:04:49.4]} 6... Bb4 {[%clk
0:04:47.6]} 7. Bd2 {[%clk 0:04:43.1]} 7... Ne7 {[%clk 0:04:44.1]} 8. Nf3 {[%clk
0:04:39]} 8... Ng6 {[%clk 0:04:41.9]} 9. Bd3 {[%clk 0:04:31.1]} 9... Nxe5 {[%clk
0:04:36.1]} 10. Nxe5 {[%clk 0:04:29.2]} 10... Qxe5 {[%clk 0:04:34.7]} 11. O-O
{[%clk 0:04:29]} 11... O-O {[%clk 0:04:30.4]} 12. a3 {[%clk 0:04:26.9]} 12...
Bxc3 {[%clk 0:04:28.2]} 13. Bxc3 {[%clk 0:04:25.8]} 13... Qg5 {[%clk 0:04:26.1]}
14. Rf3 {[%clk 0:04:13.2]} 14... Bg4 {[%clk 0:04:20.6]} 15. Rg3 {[%clk 0:04:10]}
15... Qc5+ {[%clk 0:04:19.1]} 16. Kh1 {[%clk 0:04:03.8]} 16... Qxc3 {[%clk
0:03:51.5]} 17. Qxg4 {[%clk 0:03:52.7]} 17... Qxb2 {[%clk 0:03:48.2]} 18. Rf1
{[%clk 0:03:41.6]} 18... Na6 {[%clk 0:03:45.5]} 19. h4 {[%clk 0:02:53.5]} 19...
Nc5 {[%clk 0:03:39.6]} 20. Bc4 {[%clk 0:02:39.8]} 20... Rae8 {[%clk 0:03:20.4]}
21. c3 {[%clk 0:02:36.2]} 21... g6 {[%clk 0:03:17.6]} 22. h5 {[%clk 0:02:27.4]}
22... Rxe4 {[%clk 0:03:03.7]} 23. hxg6 {[%clk 0:01:36.6]} 23... Rxg4 {[%clk
0:02:59.6]} 24. gxf7+ {[%clk 0:01:25.1]} 24... Kh8 {[%clk 0:02:23.7]} 25. Rxg4
{[%clk 0:01:24]} 25... Rxf7 {[%clk 0:02:23.1]} 26. Bxf7 {[%clk 0:01:09.5]} 26...
h5 {[%clk 0:02:13.9]} 27. Bxh5 {[%clk 0:00:55.3]} 27... Qxc3 {[%clk 0:01:56.1]}
28. Rf8+ {[%clk 0:00:32.7]} 28... Kh7 {[%clk 0:01:54.2]} 29. Rf7+ {[%clk
0:00:23.2]} 29... Kh6 {[%clk 0:01:48.2]} 30. Rfg7 {[%clk 0:00:05.1]} 30... Qxg7
{[%clk 0:01:44.8]} 31. Rxg7 {[%clk 0:00:04.4]} 31... Kxg7 {[%clk 0:01:44.2]} 32.
Bf3 {[%clk 0:00:03.1]} 32... Ne6 {[%clk 0:01:42]} 33. Kg1 {[%clk 0:00:01.8]}
33... Nd4 {[%clk 0:01:40.8]} 34. Kf2 {[%clk 0:00:01.7]} 34... Nxf3 {[%clk
0:01:38.4]} 35. gxf3 {[%clk 0:00:01.6]} 35... Kf6 {[%clk 0:01:38]} 36. Ke3
{[%clk 0:00:01.5]} 36... Kf5 {[%clk 0:01:37.6]} 37. Kd3 {[%clk 0:00:01.4]} 37...
b6 {[%clk 0:01:36.4]} 38. Ke3 {[%clk 0:00:01.3]} 38... c5 {[%clk 0:01:35]} 0-1

[Event "Live Chess"]
[Site "Chess.com"]
[Date "2024.06.02"]
[Round "-"]
[White "sebmoran1"]
[Black "asingardenof"]
[Result "1-0"]
[WhiteElo "1413"]
[BlackElo "621"]
[TimeControl "300"]
[EndTime "4:00:01 PDT"]
[Termination "sebmoran1 won by checkmate"]

1. e4 {[%clk 0:04:56.8]} 1... c5 {[%clk 0:04:57.3]} 2. Bc4 {[%clk 0:04:55.7]}
2... d6 {[%clk 0:04:57.2]} 3. Qf3 {[%clk 0:04:54.6]} 3... Nf6 {[%clk 0:04:56.9]}
4. Nc3 {[%clk 0:04:51.6]} 4... Nc6 {[%clk 0:04:55.3]} 5. d3 {[%clk 0:04:50.7]}
5... e6 {[%clk 0:04:51.9]} 6. Bg5 {[%clk 0:04:49.4]} 6... Be7 {[%clk 0:04:50]}
7. Nge2 {[%clk 0:04:47.6]} 7... Bd7 {[%clk 0:04:47.3]} 8. O-O-O {[%clk
0:04:46.7]} 8... Qc7 {[%clk 0:04:46.5]} 9. h4 {[%clk 0:04:45.1]} 9... O-O-O
{[%clk 0:04:44.9]} 10. Nb5 {[%clk 0:04:41.4]} 10... Qb6 {[%clk 0:04:42.7]} 11.
Be3 {[%clk 0:04:35.7]} 11... Ne5 {[%clk 0:04:36.5]} 12. Qg3 {[%clk 0:04:27.4]}
12... Nxc4 {[%clk 0:04:34]} 13. dxc4 {[%clk 0:04:25]} 13... Nxe4 {[%clk
0:04:29.5]} 14. Qf3 {[%clk 0:04:19.6]} 14... Nf6 {[%clk 0:04:22]} 15. g4 {[%clk
0:04:16.8]} 15... Bc6 {[%clk 0:04:18.6]} 16. Qg3 {[%clk 0:04:13.3]} 16... Bxh1
{[%clk 0:04:16.9]} 17. Rxh1 {[%clk 0:04:11.2]} 17... Ne4 {[%clk 0:04:09.6]} 18.
Qf3 {[%clk 0:04:05.9]} 18... d5 {[%clk 0:04:05.5]} 19. cxd5 {[%clk 0:03:55.2]}
19... exd5 {[%clk 0:04:05.4]} 20. Qxf7 {[%clk 0:03:44.3]} 20... Qxb5 {[%clk
0:03:55.7]} 21. Qxe7 {[%clk 0:03:40.7]} 21... Rd7 {[%clk 0:03:52.2]} 22. Qe5
{[%clk 0:03:29]} 22... Nf6 {[%clk 0:03:48.4]} 23. Bf4 {[%clk 0:03:24.8]} 23...
Ne8 {[%clk 0:03:38]} 24. Qb8# {[%clk 0:03:22.6]} 1-0